{"text_format":"1","workbook":"xlsx","n_sheets":2,"sheets":["Feuil1","Feuil2"],"not_rendered":{"charts":0,"images":1,"macros":1,"external_links":0,"defined_names":0,"comments":0,"pivot_tables":0},"unopened":[],"bounds":{"document_bytes":16777216,"sheet_cells":100000,"rows_first":2000,"rows_last":500,"rows_between":2000,"halvings":0,"cell_chars":16384,"cell_head_chars":4096},"cells_cut":0,"cells_raw":0,"read":"whole","date_system":"1900"}

{"sheet":"Feuil1","index":0,"n_rows":31,"n_cols":8,"rows_kept":31,"cut":false,"hidden":false,"merged":[[0,0,0,7]]}
["CONSOMMATION "]
["DATE","MONTANT ","PRIX AU LITRE","NOMBRE DE LITRES","KILOMÉTRAGE","KILOMÈTRES PARCOURUS","CONSOMMATION AUX 100 KMS","NUMÉRO DE CARNET"]
[]
["2013-01-17",null,null,{"$f":"IF(C4=0,\"\",B4/C4)","v":""},null,{"$f":"E4-E3","v":0},{"$f":"IF(F4=0,0,D3*100/F4)","v":0}]
["2013-01-31",null,null,"",null,null,0]
["2013-01-23",null,null,"",null,0,0]
["17/01/2013",null,null,"",null,0,0]
["2013-01-11",null,null,"",null,0,0]
["2013-01-20",null,null,"",null,0,0]
["2013-01-23",null,null,"",null,0,0]
[null,null,null,"",null,0,0]
[null,null,null,"",null,0,0]
[null,null,null,"",null,0,0]
[null,null,null,"",null,0,0]
[null,null,null,"",null,0,0]
[null,null,null,"",null,0,0]
[null,null,null,"",null,0,0]
[null,null,null,"",null,0,0]
[null,null,null,"",null,0,0]
[null,null,null,"",null,0,0]
[null,null,null,"",null,0,0]
[null,null,null,"",null,0,0]
[null,null,null,"",null,0,0]
[null,null,null,"",null,0,0]
[null,null,null,"",null,0,0]
[null,null,null,"",null,0,0]
[null,null,null,"",null,0,0]
[null,null,null,"",null,0,0]
[null,null,null,"",null,0,0]
[null,null,null,"",null,0,0]
[null,{"$f":"SUBTOTAL(109,[Colonne2])","v":0},null,{"$f":"SUBTOTAL(109,[Colonne4])","v":0},{"$f":"SUBTOTAL(109,[Colonne5])","v":0},{"$f":"SUBTOTAL(109,[Colonne6])","v":0}]

{"sheet":"Feuil2","index":1,"n_rows":0,"n_cols":0,"rows_kept":0,"cut":false,"hidden":false,"merged":[]}